bitfinex/quotes_BTCUSD_20260104
["timestamp","ask_amount","ask_price","bid_price","bid_amount"]
[1767551486522,0.02196,91089.0,91084.0,0.06587307]
[1767551486680,0.02196,91089.0,91085.0,0.01097875]
[1767551486886,0.01097791,91092.0,91085.0,0.01097875]
[1767551487095,0.01097839,91088.0,91084.0,0.01097887]
[1767551487466,0.020961,91087.0,91084.0,0.01097887]
[1767551487682,0.020961,91087.0,91085.0,0.0548934]
[1767551487906,0.020961,91087.0,91084.0,0.06587263]
[1767551488114,0.020961,91087.0,91085.0,0.05489361]
[1767551488276,0.020961,91087.0,91083.0,0.01097899]
[1767551488478,0.06587048,91088.0,91082.0,0.06587431]
[1767551488698,0.01097851,91087.0,91083.0,0.01097899]
[1767551488842,0.03293839,91088.0,91084.0,0.01097887]
[1767551489267,0.02196,91088.0,91085.0,0.01097875]
[1767551489505,0.03293839,91088.0,91083.0,0.01097899]
[1767551489894,0.08783046,91088.0,91084.0,0.01097887]
[1767551490119,0.01097851,91087.0,91083.0,0.01097899]
[1767551490632,0.01097863,91086.0,91082.0,0.01097911]
[1767551490835,0.01097875,91085.0,91080.0,0.06587581]
[1767551491195,0.01097875,91085.0,91080.0,0.01097935]
[1767551491196,0.06587273,91085.0,91080.0,0.01097935]
[1767551491395,0.06587273,91085.0,91080.0,0.06587606]
[1767551491607,0.06587273,91085.0,91080.0,0.01097935]
[1767551491812,0.06587329,91084.0,91080.0,0.01097935]
[1767551492015,0.06587329,91084.0,91079.0,0.06587667]
[1767551492214,0.06587647,91080.0,91076.0,0.01097984]
[1767551492435,0.000999,91079.0,91075.0,0.01097996]
[1767551492640,0.06587774,91078.0,91074.0,0.0001524]
[1767551492840,0.01097959,91078.0,91074.0,0.01113248]
[1767551493020,0.06587709,91079.0,91074.0,0.01113248]
[1767551493226,0.06587667,91080.0,91074.0,0.0001524]
[1767551493227,0.06587774,91078.0,91074.0,0.0001524]
[1767551493830,0.06587725,91079.0,91074.0,0.06603268]
[1767551494026,0.01097959,91078.0,91074.0,0.01113248]
[1767551494223,0.01097935,91080.0,91075.0,0.06587968]
[1767551495160,0.01097923,91081.0,91076.0,0.06587887]
[1767551495399,0.21956674,91089.0,91078.0,0.06587738]
[1767551495400,0.06587398,91083.0,91078.0,0.06587738]
[1767551495512,0.01097887,91084.0,91079.0,0.01097947]
[1767551496363,0.01097899,91083.0,91078.0,0.06587738]
[1767551496559,0.01097911,91082.0,91077.0,0.01097972]
[1767551496741,0.01097923,91081.0,91077.0,0.01097972]
[1767551497497,0.06587556,91081.0,91076.0,0.06587848]
[1767551498485,0.06587469,91082.0,91077.0,0.01097972]
[1767551498637,0.01097911,91082.0,91076.0,0.0268582]
[1767551499244,0.06587476,91082.0,91077.0,0.0548986]
[1767551499515,0.01097911,91082.0,91077.0,0.0548986]
[1767551499685,0.06587474,91082.0,91077.0,0.06587832]
[1767551499888,0.0658755,91081.0,91076.0,0.08440228]
[1767551500472,0.0658755,91081.0,91077.0,0.04656424]
[1767551500654,0.01097923,91081.0,91077.0,0.11244254]
[1767551501053,0.06587474,91082.0,91077.0,0.11244254]
[1767551501260,0.01097923,91081.0,91077.0,0.11244254]
[1767551501459,0.01097923,91081.0,91076.0,0.03783804]
[1767551501663,0.000999,91077.0,91076.0,0.03783804]
[1767551502237,0.01097935,91080.0,91076.0,0.03783804]
[1767551502760,0.01097947,91079.0,91075.0,0.04656424]
[1767551502962,0.06587509,91082.0,91077.0,0.01097972]
[1767551503159,0.06587476,91082.0,91077.0,0.06587799]
[1767551503570,0.06587545,91081.0,91076.0,0.01097984]
[1767551503983,0.05489696,91080.0,91076.0,0.01097984]
[1767551504256,0.05489768,91079.0,91075.0,0.04656424]
[1767551504429,0.000999,91076.0,91074.0,0.0001524]
[1767551504757,0.01097923,91081.0,91076.0,0.06587888]
[1767551504875,0.01097935,91080.0,91075.0,0.0548998]
[1767551505087,0.01097947,91079.0,91075.0,0.06587976]
[1767551505537,0.06587686,91079.0,91074.0,0.11259712]
[1767551505689,0.06587686,91079.0,91075.0,0.01097996]
[1767551506103,0.06587693,91079.0,91075.0,0.01097996]
[1767551506309,0.06587726,91080.0,91075.0,0.06587947]
[1767551507070,0.06587726,91080.0,91076.0,0.01097984]
[1767551507230,0.06587554,91081.0,91076.0,0.06587877]
[1767551507427,0.06587445,91083.0,91078.0,0.01097959]
[1767551507637,0.01097899,91083.0,91079.0,0.01097947]
[1767551507841,0.0658741,91083.0,91078.0,0.01097959]
[1767551508023,0.0658741,91083.0,91079.0,0.06587672]
[1767551508229,0.01097899,91083.0,91079.0,0.06587672]
[1767551508727,0.06587418,91083.0,91079.0,0.01097947]
[1767551509145,0.01097887,91084.0,91079.0,0.01097947]
[1767551509356,0.01097887,91084.0,91080.0,0.01097935]
[1767551510039,0.01097875,91085.0,91080.0,0.06587567]
[1767551510497,0.04779396,91085.0,91079.0,0.21958917]
[1767551511175,0.04779396,91085.0,91082.0,0.06587467]
[1767551511804,0.04779396,91085.0,91084.0,0.05489438]
[1767551512018,0.04779396,91085.0,91083.0,0.05489498]
[1767551512234,0.04779396,91085.0,91082.0,0.01097911]
[1767551512490,0.04779396,91085.0,91081.0,0.06587536]
[1767551512694,0.04779396,91085.0,91082.0,0.05489525]
[1767551514334,0.04779396,91085.0,91080.0,0.01097935]
[1767551514335,0.04779396,91085.0,91080.0,0.06587601]
[1767551514542,0.04779396,91085.0,91081.0,0.06587535]
[1767551515096,0.0022433,91084.0,91081.0,0.01097923]
[1767551515299,0.0022433,91083.0,91080.0,0.06587601]
[1767551515700,0.06587336,91084.0,91081.0,0.04656424]
[1767551517326,0.0548955,91083.0,91081.0,0.04556524]
[1767551517736,0.0032423,91080.0,91076.0,0.0548992]
[1767551518813,0.0032423,91080.0,91076.0,0.06587904]
[1767551519012,0.06587561,91081.0,91077.0,0.01097972]
[1767551519172,0.01097923,91081.0,91078.0,0.04656424]
[1767551519377,0.06587415,91083.0,91079.0,0.04656424]
[1767551519575,0.01097911,91082.0,91079.0,0.04656424]
[1767551520047,0.06587471,91082.0,91079.0,0.04656424]
[1767551520472,0.05489631,91081.0,91079.0,0.04656424]
[1767551521030,0.05489631,91081.0,91079.0,0.04556524]
[1767551521235,0.05489631,91081.0,91074.0,0.0001524]
[1767551521236,0.0042413,91078.0,91074.0,0.01113248]
[1767551521437,0.0042413,91076.0,91074.0,0.0001524]
[1767551522029,0.01097972,91077.0,91075.0,0.04886411]
[1767551522437,0.06587768,91078.0,91075.0,0.04886411]
[1767551522438,0.06587636,91080.0,91077.0,0.000999]
[1767551522639,0.06587636,91080.0,91078.0,0.04886411]
[1767551523208,0.01097935,91080.0,91078.0,0.04886411]
[1767551523828,0.06587632,91080.0,91078.0,0.04886411]
[1767551526135,0.05489739,91079.0,91078.0,0.04886411]
[1767551526943,0.0658777,91078.0,91073.0,0.0109802]
[1767551527215,0.06587686,91079.0,91074.0,0.10376437]
[1767551527385,0.01097959,91078.0,91075.0,0.04886411]
[1767551528744,0.01097947,91079.0,91078.0,0.04986311]
[1767551528989,0.01097947,91079.0,91078.0,0.04886411]
[1767551529186,0.06587732,91080.0,91078.0,0.04886411]
[1767551530089,0.00998035,91080.0,91078.0,0.04886411]
[1767551530659,0.06487716,91080.0,91078.0,0.04886411]
[1767551531040,0.00998035,91080.0,91078.0,0.04886411]
[1767551531460,0.06487768,91080.0,91078.0,0.04886411]
[1767551531630,0.05489739,91079.0,91078.0,0.04786511]
[1767551531833,0.01097984,91076.0,91072.0,0.04886411]
[1767551532036,0.00998035,91080.0,91073.0,0.05490094]
[1767551532203,0.05489739,91079.0,91075.0,0.04886411]
[1767551533120,0.01097947,91079.0,91075.0,0.06587969]
[1767551533317,0.01097947,91079.0,91075.0,0.1147438]
[1767551533494,0.01097947,91079.0,91076.0,0.04886411]
[1767551533844,0.06587477,91082.0,91079.0,0.000999]
[1767551534171,0.01097899,91083.0,91079.0,0.04981793]
[1767551534172,0.065874,91083.0,91079.0,0.04981793]
[1767551534391,0.01097863,91086.0,91079.0,0.10376145]
[1767551534602,0.06587194,91086.0,91080.0,0.10376033]
[1767551534833,0.06587194,91086.0,91082.0,0.04886411]
[1767551535053,0.06491898,91085.0,91082.0,0.04886411]
[1767551535284,0.05489451,91084.0,91082.0,0.04886411]
[1767551536137,0.05489498,91083.0,91082.0,0.04886411]
[1767551536305,0.05489451,91084.0,91082.0,0.04886411]
[1767551536858,0.06491963,91085.0,91082.0,0.04886411]
[1767551537679,0.01097875,91085.0,91082.0,0.04886411]
[1767551537881,0.01097887,91084.0,91080.0,0.04886411]
[1767551538297,0.06587346,91084.0,91080.0,0.04886411]
[1767551538504,0.06587403,91083.0,91080.0,0.04886411]
[1767551539050,0.06587257,91085.0,91080.0,0.05984346]
[1767551539445,0.06587257,91085.0,91080.0,0.11474025]
[1767551540573,0.06587326,91084.0,91080.0,0.05984346]
[1767551540841,0.01097875,91085.0,91080.0,0.11473974]
[1767551541145,0.06587309,91085.0,91080.0,0.05984346]
[1767551542203,0.01097863,91086.0,91080.0,0.05984346]
[1767551542846,0.01097875,91085.0,91081.0,0.01097923]
[1767551543013,0.01097875,91085.0,91080.0,0.11474018]
[1767551543420,0.01097875,91085.0,91081.0,0.01097923]
[1767551543913,0.06587275,91085.0,91080.0,0.11474018]
[1767551544139,0.01097827,91089.0,91082.0,0.05984322]
[1767551544350,0.02196,91087.0,91086.0,0.01097863]
[1767551544520,0.02196,91087.0,91086.0,0.05984274]
[1767551544723,0.0696062,91087.0,91086.0,0.01097863]
[1767551544930,0.04312578,91086.0,91085.0,0.06587253]
[1767551545497,0.00934834,91096.0,91090.0,0.01097815]
[1767551545698,0.01097767,91094.0,91090.0,0.01097815]
[1767551546175,0.06586385,91097.0,91093.0,0.04886411]
[1767551546408,0.06586463,91096.0,91093.0,0.04886411]
[1767551546560,0.0109773,91097.0,91094.0,0.04886411]
[1767551546762,0.06586404,91097.0,91094.0,0.04886411]
[1767551547498,0.06586318,91098.0,91094.0,0.04886411]
[1767551547702,0.0109767,91102.0,91098.0,0.04886411]
[1767551547916,0.01097658,91103.0,91100.0,0.04886411]
[1767551548117,0.06585861,91105.0,91100.0,0.04786511]
[1767551548408,0.01112862,91106.0,91100.0,0.05884205]
[1767551548645,0.01112862,91106.0,91101.0,0.05984093]
[1767551548767,0.01112862,91106.0,91102.0,0.04886411]
[1767551550599,0.01097634,91105.0,91102.0,0.04886411]
[1767551550871,0.05488293,91103.0,91102.0,0.04886411]
[1767551551943,0.06585814,91105.0,91102.0,0.04886411]
[1767551552555,0.05488233,91104.0,91102.0,0.04886411]
[1767551552860,0.05488293,91103.0,91102.0,0.04886411]
[1767551553067,0.06585951,91103.0,91099.0,0.06038228]
[1767551554033,0.06585951,91103.0,91099.0,0.04940522]
[1767551554231,0.0109767,91102.0,91099.0,0.04940522]
[1767551554437,0.05488735,91096.0,91094.0,0.0491949]
[1767551554615,0.0109773,91097.0,91092.0,0.01097791]
[1767551554821,0.01097743,91096.0,91092.0,0.01097791]
[1767551555123,0.05757384,91101.0,91096.0,0.01197643]
[1767551555318,0.01097694,91100.0,91096.0,0.06686347]
[1767551555522,0.04659702,91099.0,91096.0,0.01097743]
[1767551555863,0.04659702,91099.0,91096.0,0.06586442]
[1767551557459,0.04659702,91099.0,91097.0,0.05488603]
[1767551557633,0.04559802,91099.0,91096.0,0.01097743]
[1767551557845,0.04559802,91099.0,91097.0,0.05488636]
[1767551558240,0.04559802,91099.0,91098.0,0.05488594]
[1767551558445,0.00440198,91105.0,91100.0,0.01097694]
[1767551558591,0.00440198,91103.0,91099.0,0.01097706]
[1767551558945,0.00440198,91102.0,91099.0,0.01097706]
[1767551559123,0.01097658,91103.0,91099.0,0.01097706]
[1767551559340,0.06585889,91104.0,91100.0,0.06017184]
[1767551559543,0.0001524,91106.0,91103.0,0.06017148]
[1767551559844,0.0001524,91106.0,91104.0,0.0491949]
[1767551560045,0.0001524,91106.0,91103.0,0.06585948]
[1767551560344,0.00010486,91106.0,91104.0,0.0491949]
[1767551560689,0.00010486,91106.0,91104.0,0.0481959]
[1767551560891,8.6e-07,91106.0,91103.0,0.01097658]
[1767551561041,8.6e-07,91106.0,91105.0,0.10407662]
[1767551562826,0.0109749,91117.0,91113.0,0.0491949]
[1767551563063,0.05487444,91118.0,91117.0,0.0491949]
[1767551563266,0.0001524,91124.0,91117.0,0.0600658]
[1767551563478,0.01097417,91123.0,91120.0,0.0491949]
[1767551563782,0.06584673,91121.0,91117.0,0.0491949]
[1767551563982,0.01097453,91120.0,91117.0,0.0491949]
[1767551564311,0.06584652,91121.0,91117.0,0.0491949]
[1767551564447,0.01097441,91121.0,91117.0,0.0491949]
[1767551564646,0.010934,91120.0,91117.0,0.0491949]
[1767551564853,0.01085291,91120.0,91117.0,0.0491949]
[1767551565062,0.06563731,91120.0,91117.0,0.0491949]
[1767551565257,0.05478507,91119.0,91117.0,0.04905455]
[1767551565861,0.01097465,91119.0,91115.0,0.0491949]
[1767551566062,0.06584805,91119.0,91115.0,0.0491949]
[1767551566302,0.06563731,91120.0,91116.0,0.0491949]
[1767551566656,0.06575969,91119.0,91116.0,0.0491949]
[1767551566917,0.05487416,91118.0,91116.0,0.0491949]
[1767551567077,0.0548745,91117.0,91116.0,0.0491949]
[1767551567276,0.05487416,91118.0,91116.0,0.0491949]
[1767551567697,0.05487751,91112.0,91111.0,0.02196]
[1767551567903,0.0109755,91112.0,91105.0,0.07684164]
[1767551568224,0.0109761,91107.0,91104.0,0.02244961]
[1767551568369,0.01097598,91108.0,91107.0,0.000999]
[1767551568571,0.06585532,91109.0,91104.0,0.08830833]
[1767551568773,0.01097598,91108.0,91104.0,0.03342607]
[1767551569028,0.0658539,91111.0,91105.0,0.01097634]
[1767551569251,0.01097538,91113.0,91111.0,0.000999]
[1767551569437,0.0658524,91113.0,91111.0,0.000999]
[1767551569640,0.0109755,91112.0,91108.0,0.01097598]
[1767551570404,0.01097538,91113.0,91109.0,0.01097586]
[1767551570604,0.01097538,91113.0,91108.0,0.01097598]
[1767551571122,0.0109755,91112.0,91108.0,0.01097598]
[1767551571726,0.06585389,91111.0,91106.0,0.01097622]
[1767551571951,0.01097574,91110.0,91104.0,0.03342607]
[1767551572279,0.01097574,91110.0,91105.0,0.0491949]
[1767551572280,0.0548795,91109.0,91105.0,0.0491949]
[1767551572480,0.05478909,91109.0,91105.0,0.0491949]
[1767551572895,0.06585482,91110.0,91105.0,0.0491949]
[1767551573048,0.01097574,91110.0,91105.0,0.06585768]
[1767551573911,0.0658543,91111.0,91106.0,0.0658573]
[1767551575465,0.01097538,91113.0,91108.0,0.01097598]
[1767551575662,0.0109755,91112.0,91108.0,0.01097598]
[1767551575863,0.06585312,91112.0,91107.0,0.06585641]
[1767551576062,0.04659702,91109.0,91105.0,0.02683381]
[1767551576249,0.05757288,91109.0,91105.0,0.01097634]
[1767551577066,0.05757288,91109.0,91105.0,0.06585805]
[1767551577266,0.04659702,91109.0,91105.0,0.06585805]
[1767551577867,0.04659702,91109.0,91106.0,0.01097622]
[1767551578227,0.04559802,91109.0,91108.0,0.05487992]
[1767551578357,0.06585168,91114.0,91109.0,0.01097586]
[1767551578556,0.05911092,91114.0,91109.0,0.06585458]
[1767551578797,0.04813566,91113.0,91109.0,0.06585458]
[1767551579324,0.23047083,91118.0,91109.0,0.06585458]
[1767551579325,0.03293465,91119.0,91113.0,0.06585194]
[1767551579470,0.000999,91113.0,91112.0,0.0109755]
[1767551579881,0.06584989,91117.0,91112.0,0.0109755]
[1767551580117,0.06585035,91116.0,91111.0,0.01097562]
[1767551580611,0.000999,91111.0,91109.0,0.06585412]
[1767551581124,0.01097526,91114.0,91110.0,0.01097574]
[1767551581362,0.01097526,91114.0,91109.0,0.01097586]
[1767551582147,0.0658523,91113.0,91109.0,0.01097586]
[1767551582304,0.0658523,91113.0,91108.0,0.06585576]
[1767551582508,0.01097538,91113.0,91109.0,0.06585507]
[1767551582713,0.01097538,91113.0,91109.0,0.01097586]
[1767551583476,0.01097502,91116.0,91111.0,0.06036144]
[1767551584014,0.06585061,91116.0,91111.0,0.06036144]
[1767551584441,0.06585061,91116.0,91111.0,0.04938582]
[1767551584442,0.01097514,91115.0,91111.0,0.04938582]
[1767551584987,0.06584948,91117.0,91113.0,0.04938582]
[1767551585170,0.03293465,91119.0,91113.0,0.04938582]
[1767551585171,0.06584808,91119.0,91115.0,0.06036096]
[1767551585374,0.01097453,91120.0,91116.0,0.04938582]
[1767551585606,0.06584723,91120.0,91116.0,0.06036084]
[1767551585812,0.01097237,91138.0,91125.0,0.01097393]
[1767551585982,0.01097333,91130.0,91125.0,0.06032765]
[1767551586131,0.0658388,91132.0,91128.0,0.01097357]
[1767551586334,0.01097309,91132.0,91128.0,0.00983418]
[1767551586533,0.01097309,91132.0,91128.0,0.05922]
[1767551586738,0.06583862,91132.0,91128.0,0.04938582]
[1767551587144,0.01097309,91132.0,91128.0,0.06035939]
[1767551587546,0.06583809,91133.0,91129.0,0.06035927]
[1767551587760,0.0658372,91134.0,91130.0,0.04938582]
[1767551587973,0.0658372,91134.0,91130.0,0.04556108]
[1767551587974,0.01097285,91134.0,91130.0,0.04556108]
[1767551588214,0.01097273,91135.0,91130.0,0.04556108]
[1767551588215,0.01097273,91135.0,91131.0,0.04938582]
[1767551588390,0.05978144,91135.0,91130.0,0.06583984]
[1767551588948,0.05978168,91133.0,91129.0,0.01097345]
[1767551589153,0.04880871,91133.0,91130.0,0.01097333]
[1767551589367,0.04780971,91133.0,91132.0,0.05486546]
[1767551589919,0.04780971,91133.0,91132.0,0.05386646]
[1767551590316,0.01902706,91139.0,91136.0,0.01097261]
[1767551590720,0.01902706,91139.0,91135.0,0.06583636]
[1767551591029,0.01902706,91139.0,91135.0,0.01097273]
[1767551591355,0.01902706,91136.0,91131.0,0.01097321]
[1767551591557,0.05486547,91132.0,91125.0,0.00010829]
[1767551591856,0.01097309,91132.0,91129.0,0.04938582]
[1767551592071,0.01097309,91132.0,91125.0,0.00010829]
[1767551592226,0.01097357,91128.0,91125.0,0.00010829]
[1767551592634,0.06584156,91128.0,91125.0,0.00010829]
[1767551593031,0.06584076,91129.0,91125.0,0.00010829]
[1767551593256,0.01097333,91130.0,91126.0,0.01097381]
[1767551593470,0.06583963,91131.0,91126.0,0.06584276]
[1767551593684,0.06583834,91133.0,91127.0,0.06584192]
[1767551593970,0.05486429,91134.0,91128.0,0.01097357]
[1767551594174,0.01097285,91134.0,91130.0,0.04938582]
[1767551594412,0.06583768,91134.0,91130.0,0.04938582]
[1767551594616,0.01097297,91133.0,91130.0,0.04938582]
[1767551594826,0.05486559,91132.0,91130.0,0.04938582]
[1767551595001,0.06583789,91133.0,91130.0,0.04938582]
[1767551595236,0.01097297,91133.0,91130.0,0.04938582]
[1767551595667,0.00966406,91136.0,91131.0,0.04938582]
[1767551595861,0.06452724,91136.0,91133.0,0.05038482]
[1767551596019,0.00966406,91136.0,91133.0,0.05038482]
[1767551596346,0.06583552,91137.0,91133.0,0.04938582]
[1767551596680,0.05486175,91139.0,91133.0,0.11522349]
[1767551596882,0.01097249,91137.0,91132.0,0.06583837]
[1767551597159,0.01097261,91136.0,91132.0,0.01097309]
[1767551597681,0.06583515,91137.0,91132.0,0.01097309]
[1767551597682,0.06583515,91137.0,91132.0,0.11522417]
[1767551597810,0.01097249,91137.0,91133.0,0.01097297]
[1767551598237,0.01097261,91136.0,91132.0,0.01097309]
[1767551598435,0.06583626,91136.0,91131.0,0.06035903]
[1767551598633,0.01097273,91135.0,91131.0,0.04938582]
[1767551599057,0.05486485,91134.0,91131.0,0.04938582]
[1767551599471,0.05486542,91133.0,91131.0,0.04938582]
[1767551600040,0.01097333,91130.0,91126.0,0.04938582]
[1767551600245,0.01097333,91130.0,91125.0,0.00010829]
[1767551600246,0.06584058,91130.0,91125.0,0.00010829]
[1767551600460,0.06584058,91130.0,91125.0,0.04949411]
[1767551600659,0.01097333,91130.0,91126.0,0.04938582]
[1767551601073,0.06583949,91131.0,91126.0,0.1152286]
[1767551601278,0.06583949,91131.0,91127.0,0.04938582]
[1767551601626,0.01097321,91131.0,91127.0,0.06035951]
[1767551601801,0.01097321,91131.0,91127.0,0.05660011]
[1767551602008,0.01097321,91131.0,91127.0,0.04562642]
[1767551602323,0.01097321,91131.0,91127.0,0.05660011]
[1767551602665,0.06583964,91131.0,91127.0,0.04562642]
[1767551602869,0.06583794,91133.0,91127.0,0.11146839]
[1767551603481,0.06583861,91132.0,91128.0,0.01097357]
[1767551603681,0.06583794,91133.0,91128.0,0.0658412]
[1767551604432,0.06583722,91134.0,91129.0,0.06584065]
[1767551604637,0.01097297,91133.0,91129.0,0.01097345]
[1767551604937,0.01097309,91132.0,91128.0,0.01097357]
[1767551605136,0.06583865,91132.0,91127.0,0.05660011]
[1767551605318,0.06583931,91131.0,91127.0,0.04562642]
[1767551605519,0.06577137,91130.0,91127.0,0.04562642]
[1767551606125,0.05486736,91129.0,91127.0,0.04562642]
[1767551606495,0.01097321,91131.0,91127.0,0.04562642]
[1767551606696,0.0658398,91131.0,91127.0,0.04562642]
[1767551606897,0.06584014,91130.0,91127.0,0.04562642]
[1767551607176,0.01097429,91122.0,91120.0,0.02196]
[1767551607309,0.05487262,91121.0,91120.0,0.02196]
[1767551607926,0.05487262,91121.0,91120.0,0.00413331]
[1767551608789,0.01097465,91119.0,91115.0,0.01097514]
[1767551609006,0.01097465,91119.0,91117.0,0.02196]
[1767551609207,0.00997565,91119.0,91117.0,0.02196]
[1767551609833,0.05487681,91114.0,91107.0,0.06585652]
[1767551610028,0.01088576,91114.0,91109.0,0.06585465]
[1767551610195,0.01070676,91114.0,91111.0,0.04938582]
[1767551610628,0.01097574,91110.0,91104.0,0.05488122]
[1767551610832,0.01097706,91099.0,91093.0,0.05488894]
[1767551611011,0.01097646,91104.0,91098.0,0.05825108]
[1767551611219,0.01097658,91103.0,91100.0,0.0472739]
[1767551611554,0.06585883,91104.0,91100.0,0.00062919]
[1767551612958,0.01097658,91103.0,91100.0,0.00062919]
[1767551613281,0.06585975,91103.0,91100.0,0.00062919]
[1767551613505,0.05488353,91102.0,91100.0,1.9e-07]
[1767551613641,0.05488413,91101.0,91100.0,1.9e-07]
[1767551616854,0.05425513,91101.0,91100.0,1.9e-07]
[1767551619257,0.05488895,91093.0,91088.0,0.03293839]
[1767551619530,0.05488895,91093.0,91092.0,6.413e-05]
[1767551619746,0.05488871,91094.0,91092.0,0.04699166]
[1767551620361,0.01097755,91095.0,91092.0,0.04694752]
[1767551620557,0.01097743,91096.0,91092.0,0.04694752]
[1767551620758,0.01097743,91096.0,91092.0,0.05792543]
[1767551620932,0.06586384,91097.0,91093.0,0.04692753]
[1767551621138,0.0109773,91097.0,91094.0,0.04692753]
[1767551622445,0.05488775,91095.0,91094.0,0.04592853]
[1767551622824,0.05488895,91093.0,91092.0,1.999e-05]
[1767551627941,0.05489278,91087.0,91082.0,0.06587413]
[1767551628140,0.0404816,91087.0,91083.0,0.04692753]
[1767551628290,0.0404816,91087.0,91083.0,0.05790652]
[1767551628496,0.06587083,91088.0,91083.0,0.05790652]
[1767551628497,0.06587083,91088.0,91084.0,0.04692753]
[1767551628685,0.06586819,91091.0,91085.0,0.04692753]
[1767551628883,0.01097815,91090.0,91087.0,0.04692753]
[1767551629487,0.06586908,91090.0,91087.0,0.04692753]
[1767551629795,0.01097815,91090.0,91087.0,0.04692753]
[1767551630157,0.06586829,91091.0,91087.0,0.04692753]
[1767551630421,0.06586748,91092.0,91087.0,0.11279849]
[1767551631174,0.01097791,91092.0,91088.0,0.01097839]
[1767551631479,0.06586676,91093.0,91088.0,0.01097839]
[1767551631480,0.06586676,91093.0,91088.0,0.05790592]
[1767551631673,0.01097803,91091.0,91088.0,0.04692753]
[1767551632543,0.06586822,91091.0,91088.0,0.04692753]
[1767551632863,0.05489083,91090.0,91088.0,0.04692753]
[1767551633230,0.05489098,91090.0,91088.0,0.04692753]
[1767551633427,0.06586863,91091.0,91088.0,0.04592853]
[1767551633633,0.05489085,91090.0,91088.0,0.04592853]
[1767551634848,0.06586863,91091.0,91088.0,0.04592853]
[1767551635562,0.01097839,91088.0,91083.0,0.04692753]
[1767551635751,0.05489422,91085.0,91083.0,0.04692753]
[1767551635948,0.05482555,91085.0,91083.0,0.04692753]
[1767551636149,0.05389502,91085.0,91083.0,0.04692753]
[1767551636349,0.01097863,91086.0,91083.0,0.04692753]
[1767551636350,0.06587197,91086.0,91083.0,0.04692753]
[1767551636554,0.05489383,91085.0,91083.0,0.04692753]
[1767551636793,0.06587197,91086.0,91083.0,0.04692753]
[1767551636991,0.01097863,91086.0,91083.0,0.04692753]
[1767551637226,0.05589398,91083.0,91073.0,0.04692753]
[1767551637412,0.05369958,91083.0,91077.0,0.04692753]
[1767551637710,0.05270058,91083.0,91077.0,0.04692753]
[1767551637913,0.01097935,91080.0,91077.0,0.02920055]
[1767551638119,0.06587582,91082.0,91078.0,0.05790712]
[1767551638325,0.06587582,91082.0,91078.0,0.04692753]
[1767551638490,0.06587542,91081.0,91078.0,0.04692753]
[1767551638889,0.01097899,91083.0,91052.0,0.0002]
[1767551638890,0.04750181,91078.0,91052.0,0.0002]
[1767551639101,0.01098261,91053.0,91035.0,0.01098478]
[1767551639308,0.21966347,91049.0,91036.0,6.74e-05]
[1767551639492,0.06590323,91043.0,91036.0,6.74e-05]
[1767551639695,0.022,91042.0,91036.0,6.74e-05]
[1767551640069,0.05492239,91038.0,91036.0,6.74e-05]
[1767551640268,0.03696337,91037.0,91036.0,6.74e-05]
[1767551640893,0.022,91042.0,91036.0,6.74e-05]
[1767551640895,0.022,91043.0,91040.0,0.01098418]
[1767551641112,0.01098225,91056.0,91050.0,0.01098297]
[1767551641314,0.00570527,91089.0,91036.0,6.74e-05]
[1767551641315,0.01098177,91060.0,91053.0,0.06589537]
[1767551641543,0.01098177,91060.0,91055.0,0.01098237]
[1767551641744,0.0109814,91063.0,91057.0,0.01098213]
[1767551641975,0.01098128,91064.0,91058.0,0.01098201]
[1767551642413,0.06588806,91064.0,91057.0,0.01098213]
[1767551642542,0.01098128,91064.0,91057.0,0.01098213]
[1767551642743,0.0109814,91063.0,91058.0,0.01098201]
[1767551642973,0.0109814,91063.0,91057.0,0.01098213]
[1767551643177,0.01098128,91064.0,91058.0,0.01098201]
[1767551643542,0.01098116,91065.0,91058.0,0.01098201]
[1767551643740,0.01098116,91065.0,91058.0,0.06589169]
[1767551643962,0.01098116,91065.0,91059.0,0.01098189]
[1767551644203,0.01098116,91065.0,91058.0,0.01098201]
[1767551644204,0.01098128,91064.0,91058.0,0.01098201]
[1767551644502,0.01098128,91064.0,91059.0,0.01098189]
[1767551644702,0.0109814,91063.0,91058.0,0.01098201]
[1767551644905,0.01098164,91061.0,91056.0,0.03298225]
[1767551645103,0.01148583,91062.0,91056.0,0.03298225]
[1767551645271,0.01098164,91061.0,91056.0,0.03298225]
[1767551646530,0.00050431,91062.0,91058.0,0.01098201]
[1767551647167,0.00050431,91062.0,91058.0,0.06589192]
[1767551647535,0.00050431,91062.0,91057.0,0.01098213]
[1767551647679,0.00050431,91062.0,91058.0,0.01098201]
[1767551648106,0.00050431,91062.0,91059.0,0.01098189]
[1767551648851,0.00050431,91062.0,91058.0,0.01098201]
[1767551650221,0.00050431,91062.0,91059.0,0.01098189]
[1767551650619,0.00050431,91062.0,91060.0,0.05490883]
[1767551651060,0.00050431,91062.0,91060.0,0.05490867]
[1767551651666,0.00050431,91062.0,91060.0,0.05490872]
[1767551652754,0.00050431,91062.0,91061.0,0.05490824]
[1767551652956,0.06588289,91071.0,91063.0,0.0109814]
[1767551653156,0.01098056,91070.0,91064.0,0.03298128]
[1767551653364,0.0109808,91068.0,91064.0,0.022]
[1767551653582,0.06603675,91069.0,91064.0,0.03298128]
[1767551653786,0.0001524,91069.0,91064.0,0.03298128]
[1767551654434,0.06603677,91069.0,91064.0,0.0220674]
[1767551654597,0.01113308,91069.0,91064.0,0.03304868]
[1767551654947,0.01113308,91069.0,91064.0,0.08795483]
[1767551655154,0.0109808,91068.0,91064.0,0.0220674]
[1767551655433,0.01113308,91069.0,91064.0,0.0220674]
[1767551655434,0.01113308,91069.0,91064.0,0.03304868]
[1767551655704,0.01113308,91069.0,91064.0,0.08795479]
[1767551656440,0.01113308,91069.0,91065.0,0.01098116]
[1767551656441,0.0001524,91069.0,91065.0,0.01098116]
[1767551656642,0.01113308,91069.0,91065.0,0.01098116]
[1767551657553,0.01113308,91069.0,91064.0,0.08795479]
[1767551657777,0.0001524,91069.0,91065.0,0.01098116]
[1767551658010,0.01113308,91069.0,91064.0,0.08795479]
[1767551658452,0.06603655,91069.0,91064.0,0.03304868]
[1767551658842,0.01113308,91069.0,91064.0,0.03304868]
[1767551659395,0.0109808,91068.0,91064.0,0.0220674]
[1767551660177,0.0109808,91068.0,91064.0,0.07043648]
[1767551660374,0.01113308,91069.0,91064.0,0.13632415]
[1767551660555,0.0109808,91068.0,91064.0,0.07043648]
[1767551660755,0.06603677,91069.0,91064.0,0.0220674]
[1767551660959,0.0109808,91068.0,91064.0,0.0220674]
[1767551661158,0.06603677,91069.0,91064.0,0.03304868]
[1767551661560,0.0109808,91068.0,91064.0,0.0220674]
[1767551662098,0.01646798,91068.0,91064.0,0.0220674]
[1767551662500,0.01113308,91069.0,91064.0,0.03304868]
[1767551662703,0.0109808,91068.0,91064.0,0.0220674]
[1767551663224,0.06603698,91069.0,91064.0,0.03304868]
[1767551663638,0.0001524,91069.0,91064.0,0.03304868]
[1767551664043,0.0001524,91069.0,91066.0,0.01098104]
[1767551664181,0.0001524,91069.0,91066.0,0.05935012]
[1767551664382,0.0001524,91069.0,91065.0,0.06588579]
[1767551664587,0.0001524,91069.0,91066.0,0.01098104]